Cogmind - Beta 12 @@@ ROGUE MODE // 2023.05.10 @ 16:28:34 Player: Mr Goldstein Result: Self-destructed Performance ------------- Evolutions (3) 1500 Regions Visited (11) 2200 Robots Destroyed (0) 0 Value Destroyed (0) 0 Prototype IDs (29) 580 Alien Tech Used (0) 0 Bonus (1578) 1578 TOTAL SCORE: 5858 Bonus ------- Pacifist 928 Follower Combat Kills 50 Aligned with FarCom 300 Met Imprinter 300 Cogmind --------- Core Integrity 567/700 Matter 280/300 Energy 158/170 System Corruption 0% Temperature Cool (0) Movement Flying (32) Location -7/Zion Parts ------- > --- POWER (1) -------- Makeshift Power Source > --- PROPULSION (5) --- Improved VTOL Module Nuclear Pulse Thruster Nuclear Pulse Thruster > --- UTILITY (5) ------ Lightpack 2.0 Signal Interpreter > --- WEAPON (2) ------- (None) > --- INVENTORY (40) --- Improved Deuterium Engine Advanced Weight Redist. System Experimental Sensor Array Improved Propulsion Shielding Improved Utility Shielding Improved Utility Shielding Improved Utility Shielding Improved Utility Shielding Improved Utility Shielding Improved Utility Shielding Makeshift Hacking Suite Hacking Drone Bay RU-N14's Throwing Claymores (10) RU-N14's Throwing Claymores (10) Peak State ------------ > --- POWER ------------ Makeshift Power Source > --- PROPULSION ------- Improved VTOL Module Nuclear Pulse Thruster Nuclear Pulse Thruster > --- UTILITY ---------- Lightpack 2.0 Experimental Sensor Array Signal Interpreter > --- WEAPON ----------- RU-N14's Throwing Claymores Makeshift Sword > --- INVENTORY -------- Improved Deuterium Engine Advanced Weight Redist. System Improved Propulsion Shielding Improved Utility Shielding Improved Utility Shielding Improved Utility Shielding Improved Utility Shielding Improved Utility Shielding Improved Utility Shielding Makeshift Hacking Suite Hacking Drone Bay RU-N14's Throwing Claymores RU-N14's Throwing Claymores RU-N14's Throwing Claymores [Rating: 75] Favorites ----------- Power Light Angular Momentum Engine Engine Light Angular Momentum Engine Power Core Light Nuclear Core Propulsion Flight Unit Treads Advanced Treads Flight Unit Flight Unit Utility Signal Interpreter Device Advanced Weight Redist. System Storage Lightpack 2.0 Processor Signal Interpreter Weapon Longsword +1 Special Weapon RU-N14's Throwing Claymores Slashing Weapon Longsword +1 Build | -11 -10 -10 -9 -9 -9 -8 -8 -7 -7 -7 -7 ------- Run | Jun Mat Min Mat Min Exi Min Mat Fac Low Low Zio Slots Evolved 6 | . . . 2 . . . 2 2 . . . Power . | . . . . . . . . . . . . Propulsion 3 | . . . 2 . . . . 1 . . . Utility 3 | . . . . . . . 2 1 . . . Weapon . | . . . . . . . . . . . . Parts Attached 39 | 2 1 . 8 11 2 1 2 2 5 1 4 Power 5 | . . . 1 2 . . 1 . 1 . . Engine 4 | . . . 1 1 . . 1 . 1 . . Core 1 | . . . . 1 . . . . . . . Reactor . | . . . . . . . . . . . . Propulsion 23 | 2 . . 6 9 . 1 1 . 3 1 . Treads 8 | 2 . . 6 . . . . . . . . Leg . | . . . . . . . . . . . . Wheel . | . . . . . . . . . . . . Hover . | . . . . . . . . . . . . Flight 15 | . . . . 9 . 1 1 . 3 1 . Utility 6 | . 1 . 1 . . . . 2 1 . 1 Device 3 | . . . 1 . . . . 1 . . 1 Storage 2 | . . . . . . . . 1 1 . . Processor 1 | . 1 . . . . . . . . . . Hackware . | . . . . . . . . . . . . Protection . | . . . . . . . . . . . . Artifact . | . . . . . . . . . . . . Weapon 5 | . . . . . 2 . . . . . 3 Energy Gun . | . . . . . . . . . . . . Energy Cannon . | . . . . . . . . . . . . Ballistic Gun . | . . . . . . . . . . . . Ballistic Cannon . | . . . . . . . . . . . . Launcher . | . . . . . . . . . . . . Special Weapon 2 | . . . . . . . . . . . 2 Impact Weapon . | . . . . . . . . . . . . Slashing Weapon 3 | . . . . . 2 . . . . . 1 Piercing Weapon . | . . . . . . . . . . . . Special Melee Weapon . | . . . . . . . . . . . . Unidentified Prototypes 5 | . . . 1 . 1 . 1 . . . 2 Parts Lost 13 | . . . 1 4 . 2 . 1 2 3 . Power 1 | . . . . . . . . . 1 . . Propulsion 12 | . . . 1 4 . 2 . 1 1 3 . Utility . | . . . . . . . . . . . . Weapon . | . . . . . . . . . . . . Highest Loss Streak 3 | . . . 1 3 . 1 . 1 2 3 . To Critical Strikes . | . . . . . . . . . . . . Average Slot Usage (%) 66 | . 34 42 50 69 86 84 56 67 56 59 60 Engine 6 | . . . . 4 11 11 9 7 5 7 7 Treads 5 | . 28 28 33 5 . . . . . . . Flight 27 | . . . . 34 44 40 29 28 28 29 23 Device 8 | . . . 5 11 11 11 . 7 7 7 6 Storage 2 | . . . . . . . . 7 6 7 7 Processor 9 | . 6 14 11 11 11 11 9 7 7 7 7 Slashing Weapon 4 | . . . . . 9 11 9 7 . . 6 Naked Turns . | . . . . . . . . . . . . Heaviest Build 20 | . . . . 9 12 12 12 17 17 9 20 Greatest Support 26 | 3 3 3 3 16 16 16 17 22 26 25 17 Greatest Overweight (x) 1 | . . . . . . . . . . . 1 Average Overweight (x) . | . . . . . . . . . . . . Largest Inventory Capacity 40 | 5 5 5 5 5 5 5 5 40 40 40 40 Average Capacity 19 | 5 5 5 5 5 5 5 5 40 38 40 40 Most Carried 15 | . 5 5 5 5 5 5 5 7 9 9 15 Average Carried 6 | . 2 5 5 3 4 4 5 4 7 8 12 Final Capacity 40 | 5 5 5 5 5 5 5 5 40 40 40 40 Final Carried 14 | . 5 5 5 4 5 4 5 7 9 8 14 Class Distribution -------------------- 37% | Hauler-Sprinter 28% | Mutant 28% | Sprinter 3% | Scavenger-Sprinter Dominant Class ---------------- Mutant | -10/Materials Mutant | -10/Mines Mutant | -9/Materials Mutant | -9/Mines Sprinter | -9/Exiles Mutant | -8/Mines Mutant | -8/Materials Hauler-Sprinter | -7/Factory Hauler-Sprinter | -7/Lower Caves Hauler-Sprinter | -7/Lower Caves Hauler-Sprinter | -7/Zion Resources | -11 -10 -10 -9 -9 -9 -8 -8 -7 -7 -7 -7 ----------- Run | Jun Mat Min Mat Min Exi Min Mat Fac Low Low Zio Matter Collected 505 | 220 . . . 170 . . . . 95 . 20 Remotely . | . . . . . . . . . . . . Salvage Created . | . . . . . . . . . . . . Parts . | . . . . . . . . . . . . Haulers Intercepted . | . . . . . . . . . . . . Recyclers Shooed . | . . . . . . . . . . . . Parts Field Recycled . | . . . . . . . . . . . . Retrieved Matter . | . . . . . . . . . . . . Parts Self-Destructed 4 | . . . . . . . . . 4 . . Prevented . | . . . . . . . . . . . . Kills | -11 -10 -10 -9 -9 -9 -8 -8 -7 -7 -7 -7 ------- Run | Jun Mat Min Mat Min Exi Min Mat Fac Low Low Zio Combat Hostiles Destroyed . | . . . . . . . . . . . . Classes Destroyed . | . . . . . . . . . . . . Best Kill Streak . | . . . . . . . . . . . . Combat Bots Only . | . . . . . . . . . . . . Max Kills in Single Turn . | . . . . . . . . . . . . Gunslinging . | . . . . . . . . . . . . Exploded . | . . . . . . . . . . . . Melee . | . . . . . . . . . . . . Uniques/NPCs Destroyed . | . . . . . . . . . . . . Combat | -11 -10 -10 -9 -9 -9 -8 -8 -7 -7 -7 -7 -------- Run | Jun Mat Min Mat Min Exi Min Mat Fac Low Low Zio Damage Taken 1485 | . 72 10 666 279 . 52 14 230 46 116 . Core 362 | . 18 . 108 103 . . . 102 18 13 . Absorbed by Shields . | . . . . . . . . . . . . Regen/Repaired (Parts) 97 | . . . . . . . . . . . 97 Core Remaining (%) 84 | 100 . 92 . . . 47 100 . . . . Volleys Fired 20 | . . . . . . . . . . . 20 Largest 1 | . . . . . . . . . . . 1 Hottest . | . . . . . . . . . . . . Shots Fired 20 | . . . . . . . . . . . 20 Gun . | . . . . . . . . . . . . Cannon . | . . . . . . . . . . . . Launcher . | . . . . . . . . . . . . Special 20 | . . . . . . . . . . . 20 Kinetic . | . . . . . . . . . . . . Thermal . | . . . . . . . . . . . . Explosive 20 | . . . . . . . . . . . 20 Electromagnetic . | . . . . . . . . . . . . Robot Hit Streak . | . . . . . . . . . . . . Robot Miss Streak . | . . . . . . . . . . . . Penetration Max . | . . . . . . . . . . . . Secondary Targets . | . . . . . . . . . . . . Shots Hit Robots . | . . . . . . . . . . . . Core Hits 1 | . 1 . . . . . . . . . . Critical Kills . | . . . . . . . . . . . . Critical Parts Destroyed . | . . . . . . . . . . . . Critical Strikes . | . . . . . . . . . . . . Melee Attacks 3 | . . . . . . 3 . . . . . Impact . | . . . . . . . . . . . . Slashing 3 | . . . . . . 3 . . . . . Piercing . | . . . . . . . . . . . . Sneak Attacks . | . . . . . . . . . . . . Combat Hostiles . | . . . . . . . . . . . . Follow-up Attacks . | . . . . . . . . . . . . Damage Inflicted 10 | . 10 . . . . . . . . . . Guns . | . . . . . . . . . . . . Cannons . | . . . . . . . . . . . . Explosions . | . . . . . . . . . . . . Melee . | . . . . . . . . . . . . Ramming 10 | . 10 . . . . . . . . . . Kinetic . | . . . . . . . . . . . . Thermal . | . . . . . . . . . . . . Explosive . | . . . . . . . . . . . . Electromagnetic . | . . . . . . . . . . . . Impact . | . . . . . . . . . . . . Slashing . | . . . . . . . . . . . . Piercing . | . . . . . . . . . . . . Highest Corruption . | . . . . . . . . . . . . Average Corruption . | . . . . . . . . . . . . Corruption Purged . | . . . . . . . . . . . . Corruption Blocked . | . . . . . . . . . . . . Overload Shots . | . . . . . . . . . . . . Overflow Damage . | . . . . . . . . . . . . Projectiles . | . . . . . . . . . . . . Explosions . | . . . . . . . . . . . . Melee . | . . . . . . . . . . . . Knockbacks . | . . . . . . . . . . . . Impact . | . . . . . . . . . . . . Kinetic . | . . . . . . . . . . . . Secondary . | . . . . . . . . . . . . Self-Inflicted Damage 4 | . 4 . . . . . . . . . . Shots . | . . . . . . . . . . . . Rammed 3 | . 3 . . . . . . . . . . Targets Rammed 3 | . 3 . . . . . . . . . . Kicked . | . . . . . . . . . . . . Crushed . | . . . . . . . . . . . . Highest Temperature 59 | . . . 5 12 . 4 . 2 54 59 . Average Temperature 19 | . . . 5 5 . 4 . 2 22 19 . Received Heat Transfer 579 | . 36 6 312 117 . 9 9 45 . 45 . Siege Activations . | . . . . . . . . . . . . Robots Corrupted . | . . . . . . . . . . . . Combat Hostiles . | . . . . . . . . . . . . Parts Fried . | . . . . . . . . . . . . Impact Corruptions . | . . . . . . . . . . . . Robots Melted . | . . . . . . . . . . . . Combat Hostiles . | . . . . . . . . . . . . Parts Melted . | . . . . . . . . . . . . Heat Transferred . | . . . . . . . . . . . . Parts Sabotaged . | . . . . . . . . . . . . Parts Stolen 2 | . . . . . . . . . 2 . . Parts Stripped . | . . . . . . . . . . . . Power Chain Reactions . | . . . . . . . . . . . . Missiles Intercepted . | . . . . . . . . . . . . Alert | -11 -10 -10 -9 -9 -9 -8 -8 -7 -7 -7 -7 ------- Run | Jun Mat Min Mat Min Exi Min Mat Fac Low Low Zio Peak Influence 341 | . 45 17 254 278 . 117 75 341 . . . Initial 94 | . . 17 6 94 . . 45 33 . . . Average 130 | . 14 17 92 190 . 75 61 220 . . . Maximum Alert Level 1 | . . . 1 1 . . . 1 . . . Low Security (%) 69 | 100 100 100 75 55 . 100 100 27 . . . Level 1 30 | . . . 24 44 . . . 72 . . . Level 2 . | . . . . . . . . . . . . Level 3 . | . . . . . . . . . . . . Level 4 . | . . . . . . . . . . . . Level 5 . | . . . . . . . . . . . . High Security . | . . . . . . . . . . . . Max Security . | . . . . . . . . . . . . Squads Dispatched 8 | . 2 . 3 . . . 1 2 . . . Investigation 5 | . . . 3 . . . . 2 . . . Extermination . | . . . . . . . . . . . . Reinforcement 3 | . 2 . . . . . 1 . . . . Assault . | . . . . . . . . . . . . Garrison . | . . . . . . . . . . . . Intercept . | . . . . . . . . . . . . Searches Triggered . | . . . . . . . . . . . . Construction Impeded . | . . . . . . . . . . . . Haulers Reinforced . | . . . . . . . . . . . . Active Scanning Responses . | . . . . . . . . . . . . Cargo Convoy Interrupts . | . . . . . . . . . . . . Stealth | -11 -10 -10 -9 -9 -9 -8 -8 -7 -7 -7 -7 --------- Run | Jun Mat Min Mat Min Exi Min Mat Fac Low Low Zio Distress Signals 2 | . . . 1 . . . . 1 . . . Communications Jammed . | . . . . . . . . . . . . Distress Signals . | . . . . . . . . . . . . Times Spotted 98 | . 6 2 22 25 . 9 3 12 12 7 . Peak Tracking Total 14 | . 5 2 14 11 . 6 2 10 5 5 . Tactical Retreats 23 | . 1 . 3 8 . 3 . 2 2 4 . Traps | -11 -10 -10 -9 -9 -9 -8 -8 -7 -7 -7 -7 ------- Run | Jun Mat Min Mat Min Exi Min Mat Fac Low Low Zio Traps Triggered 2 | . . . 2 . . . . . . . . Indirectly . | . . . . . . . . . . . . Trap Hack Attempts . | . . . . . . . . . . . . Triggered . | . . . . . . . . . . . . Disarmed . | . . . . . . . . . . . . Reprogrammed . | . . . . . . . . . . . . Reused . | . . . . . . . . . . . . Traps Extracted . | . . . . . . . . . . . . Installed . | . . . . . . . . . . . . Triggered . | . . . . . . . . . . . . Exploded 1 | . . . . . 1 . . . . . . Machines | -11 -10 -10 -9 -9 -9 -8 -8 -7 -7 -7 -7 ---------- Run | Jun Mat Min Mat Min Exi Min Mat Fac Low Low Zio Machines Disabled . | . . . . . . . . . . . . Max in Single Turn . | . . . . . . . . . . . . Garrison Access 1 | . . . . . . . . 1 . . . Machines Repaired . | . . . . . . . . . . . . Machines Sabotaged . | . . . . . . . . . . . . Overloaded Fab Kills . | . . . . . . . . . . . . Hacking | -11 -10 -10 -9 -9 -9 -8 -8 -7 -7 -7 -7 --------- Run | Jun Mat Min Mat Min Exi Min Mat Fac Low Low Zio Machines Accessed 10 | . . . 2 . 1 . 1 4 1 . 1 Terminals 6 | . . . 2 . . . 1 3 . . . Fabricators . | . . . . . . . . . . . . Repair Stations . | . . . . . . . . . . . . Recycling Units . | . . . . . . . . . . . . Scanalyzers . | . . . . . . . . . . . . Garrison Access 1 | . . . . . . . . 1 . . . Total Hacks 25 | . . . 4 . 1 . 2 11 1 . 6 Successful 16 | . . . 1 . 1 . 2 5 1 . 6 Failed 9 | . . . 3 . . . . 6 . . . Catastrophic 5 | . . . 3 . . . . 2 . . . Database Lockouts . | . . . . . . . . . . . . Manual 15 | . . . 4 . 1 . . 10 . . . Terminals 15 | . . . 4 . . . 2 9 . . . Fabricators . | . . . . . . . . . . . . Repair Stations . | . . . . . . . . . . . . Recycling Units . | . . . . . . . . . . . . Scanalyzers . | . . . . . . . . . . . . Garrison Access 2 | . . . . . . . . 2 . . . Terminal Hacks 13 | . . . 1 . 1 . 2 2 1 . 6 Part Schematic 6 | . . . . . . . . . . . 6 Prototype ID Bank 1 | . . . . . . . 1 . . . . Open Door 1 | . . . . . . . . . 1 . . Branch Access Points 2 | . . . 1 . . . . 1 . . . Hauler Manifests 1 | . . . . . . . 1 . . . . Zone Layout 1 | . . . . . . . . 1 . . . EX-Prototype ID Bank 1 | . . . . . 1 . . . . . . Fabricator Hacks . | . . . . . . . . . . . . Repair Station Hacks . | . . . . . . . . . . . . Recycling Unit Hacks . | . . . . . . . . . . . . Scanalyzer . | . . . . . . . . . . . . Garrison Access Hacks . | . . . . . . . . . . . . Unauthorized Hacks 3 | . . . . . . . . 3 . . . Terminals 2 | . . . . . . . . 2 . . . Botnet 2 | . . . . . . . . 2 . . . Fabricators . | . . . . . . . . . . . . Repair Stations . | . . . . . . . . . . . . Recycling Units . | . . . . . . . . . . . . Scanalyzers . | . . . . . . . . . . . . Garrison Access 1 | . . . . . . . . 1 . . . Jam 1 | . . . . . . . . 1 . . . Data Cores Recovered . | . . . . . . . . . . . . Used . | . . . . . . . . . . . . Hacking Detections 4 | . . . 2 . . . . 2 . . . Full Trace Events 3 | . . . 2 . . . . 1 . . . Feedback Events . | . . . . . . . . . . . . Feedback Blocked . | . . . . . . . . . . . . Robot Schematics Acquired . | . . . . . . . . . . . . Robots Built . | . . . . . . . . . . . . Authchips . | . . . . . . . . . . . . Time . | . . . . . . . . . . . . Total Robot Build Rating . | . . . . . . . . . . . . Part Schematics Acquired 6 | . . . . . . . . . . . 6 Parts Built . | . . . . . . . . . . . . Authchips . | . . . . . . . . . . . . Time . | . . . . . . . . . . . . Total Part Build Rating . | . . . . . . . . . . . . Parts Repaired . | . . . . . . . . . . . . Time . | . . . . . . . . . . . . Parts Recycled . | . . . . . . . . . . . . Recycled Matter . | . . . . . . . . . . . . Retrieved Matter . | . . . . . . . . . . . . Retrieved Components . | . . . . . . . . . . . . Parts Scanalyzed . | . . . . . . . . . . . . Part Schematics Acquired . | . . . . . . . . . . . . Parts Damaged . | . . . . . . . . . . . . Bothacking | -11 -10 -10 -9 -9 -9 -8 -8 -7 -7 -7 -7 ------------ Run | Jun Mat Min Mat Min Exi Min Mat Fac Low Low Zio Used RIF Installer . | . . . . . . . . . . . . Robots Hacked . | . . . . . . . . . . . . Non-combat . | . . . . . . . . . . . . Combat . | . . . . . . . . . . . . Robot Hacks Applied . | . . . . . . . . . . . . Relay Couplers Released . | . . . . . . . . . . . . Fabnet Peak Effective % . | . . . . . . . . . . . . Robots Rewired . | . . . . . . . . . . . . Allies Hacked . | . . . . . . . . . . . . Hacks Repelled . | . . . . . . . . . . . . Allies | -11 -10 -10 -9 -9 -9 -8 -8 -7 -7 -7 -7 -------- Run | Jun Mat Min Mat Min Exi Min Mat Fac Low Low Zio Total Allies 3 | . . . . 3 . . . . . . . Largest Group 3 | . . . . 3 . . . . . . . Highest-Rated Group 40 | . . . . 40 . . . . . . . Highest-Rated Ally 16 | . . . . 16 . . . . . . . Total Orders . | . . . . . . . . . . . . Ally Attacks 17 | . . . . 17 . . . . . . . Total Damage 224 | . . . . 224 . . . . . . . Kills 2 | . . . . 2 . . . . . . . Allies Corrupted . | . . . . . . . . . . . . Allies Melted . | . . . . . . . . . . . . Intel | -11 -10 -10 -9 -9 -9 -8 -8 -7 -7 -7 -7 ------- Run | Jun Mat Min Mat Min Exi Min Mat Fac Low Low Zio Robot Analysis Total . | . . . . . . . . . . . . Derelict Logs Recovered 5 | . . . . 1 . . . . 2 1 1 Drone Launches . | . . . . . . . . . . . . Drone Recoveries . | . . . . . . . . . . . . Exploration | -11 -10 -10 -9 -9 -9 -8 -8 -7 -7 -7 -7 ------------- Run | Jun Mat Min Mat Min Exi Min Mat Fac Low Low Zio Turns Passed 2036 | 22 67 18 227 320 424 100 32 111 145 148 422 Spaces Moved 4346 | 39 114 35 428 766 309 289 81 348 407 483 1047 Core 715 | 39 114 35 428 99 . . . . . . . Treads . | . . . . . . . . . . . . Legs . | . . . . . . . . . . . . Wheels . | . . . . . . . . . . . . Hover . | . . . . . . . . . . . . Flight 3631 | . . . . 667 309 289 81 348 407 483 1047 Fastest Speed 25 | 50 50 50 50 31 31 31 29 29 25 25 32 Average Speed 34 | 50 50 50 50 34 31 31 33 29 28 28 32 Slowest Speed 108 | 50 50 50 50 50 31 34 34 32 35 32 108 Overloaded Moves . | . . . . . . . . . . . . Propulsion Burnouts . | . . . . . . . . . . . . Robots Hopped 29 | . . . . 14 . 5 2 3 2 2 1 Cave-ins Triggered . | . . . . . . . . . . . . Exploration Rate (%) 46 | 3 29 16 55 94 62 56 12 11 64 70 84 Regions Visited 11 Branch Regions 7 Pre-discovered Areas 3 | . . . . 2 . . . . . . 1 Known Exits Taken 10 | . 1 1 1 1 1 1 1 1 1 1 . Unknown Exits Taken 1 | 1 . . . . . . . . . . . Scrap Searched 12 | . . . . 2 . 1 . . 4 2 3 Spaces Dug 25 | . . . . . . 3 . . . . 22 Terrain Destroyed 43 | . . . . . . 3 . . . . 40 Melee 3 | . . . . . . 3 . . . . . Projectile 1 | . . . . . . . . . . . 1 AOE 39 | . . . . . . . . . . . 39 Terrain Rammed . | . . . . . . . . . . . . Walls Destroyed . | . . . . . . . . . . . . Machines Disabled . | . . . . . . . . . . . . Actions | -11 -10 -10 -9 -9 -9 -8 -8 -7 -7 -7 -7 --------- Run | Jun Mat Min Mat Min Exi Min Mat Fac Low Low Zio Total 4823 | 40 122 34 438 805 637 287 82 352 429 488 1109 Wait 407 | . . . . 36 323 . . . 14 7 27 Move 4280 | 38 113 34 427 740 308 278 76 341 402 478 1045 Hop 26 | . . . . 11 . 5 2 3 2 2 1 Pick Up 30 | . 5 . . 3 1 . . 6 6 . 9 Fast Attach 21 | 2 1 . 6 4 1 . 2 . 4 . 1 Attach 14 | . . . . 5 1 1 . 2 1 1 3 Detach 4 | . . . . . 1 . 1 . . . 2 Swap 4 | . . . 2 2 . . . . . . . Drop 11 | . . . 3 4 2 . 1 . . . 1 Fire 20 | . . . . . . . . . . . 20 Melee 3 | . . . . . . 3 . . . . . Ram 3 | . 3 . . . . . . . . . . Kick . | . . . . . . . . . . . . Crush . | . . . . . . . . . . . . Escape Stasis . | . . . . . . . . . . . . Rewire . | . . . . . . . . . . . . Trap . | . . . . . . . . . . . . Miscellaneous . | . . . . . . . . . . . . Route ------- -11/Junkyard -10/Materials -10/Mines -9/Materials (discovered 2 exits: *Mat / *Min) -9/Mines (discovered 3 exits: *Mat x2 / *Exi) -9/Exiles -8/Mines -8/Materials -7/Factory (discovered 4 exits: Sto x2 / *Low x2) -7/Lower Caves -7/Lower Caves -7/Zion (discovered 1 exit: *Pro) History --------- Turn | Location | Event 9 | -11/Junkyard | Discovered new exit (range 15) 23 | -11/Junkyard | Entered Materials 88 | -10/Materials | Discovered new exit (range 5) 89 | -10/Materials | Identified exit to Mines 90 | -10/Materials | Entered Mines 92 | -10/Mines | Discovered new exit (range 10) 107 | -10/Mines | Identified exit to Materials 108 | -10/Mines | Entered Materials 108 | -9/Materials | Evolved 2 slots: Propulsion x2 151 | -9/Materials | Discovered new exit (range 13) 306 | -9/Materials | Identified exit to Mines 316 | -9/Materials | Build established: Mutant 335 | -9/Materials | Entered Mines 340 | -9/Mines | Found a damaged Exp. Sensor Array with a note attached 344 | -9/Mines | Found Prototype Device 355 | -9/Mines | Received a Rocket Launcher from a helpful Derelict 356 | -9/Mines | Learned location of Storage (-7) 403 | -9/Mines | Assisted by bots powering up and referring to "LRC-V3" 451 | -9/Mines | Discovered new exit (range 12) 502 | -9/Mines | Discovered new exit (range 11) 508 | -9/Mines | Core integrity fell below 50% 512 | -9/Mines | Identified exit to Materials 513 | -9/Mines | Joined a pair of Derelicts in attacking an 0b10 outpost 557 | -9/Mines | Lost 3 parts (3n) 654 | -9/Mines | Deemed a non-threat by the Exiles lab entrance 654 | -9/Mines | Discovered new exit (range 5) 655 | -9/Mines | Identified exit to Exiles 655 | -9/Mines | Entered Exiles 663 | -9/Exiles | Met 8R-AWN 668 | -9/Exiles | Met EX-HEX 679 | -9/Exiles | Met EX-BIN 683 | -9/Exiles | Aligned with FarCom system 683 | -9/Exiles | Given EX-Vault access code 691 | -9/Exiles | Opened EX-Vault 692 | -9/Exiles | Found Prototype Slashing Weapon 692 | -9/Exiles | Identified Longsword +1 701 | -9/Exiles | Warned to stay clear of 0b10 Research branches 707 | -9/Exiles | Exiles lab attacked by MAIN.C 726 | -9/Exiles | Found Lightpack 2.0 752 | -9/Exiles | Discovered new exit (range 12) 898 | -9/Exiles | Build established: Sprinter 1018 | -9/Exiles | Identified exit to Mines 1079 | -9/Exiles | Stole two prototypes: Longsword +1, Lightpack 2.0 1079 | -9/Exiles | Entered Mines 1173 | -8/Mines | Discovered exit to Materials (range 15) 1179 | -8/Mines | Entered Materials 1179 | -8/Materials | Evolved 2 slots: Utility x2 1210 | -8/Materials | Discovered new exit (range 3) 1210 | -8/Materials | Identified exit to Factory 1211 | -8/Materials | Entered Factory 1211 | -7/Factory | Evolved 2 slots: Propulsion x1, Utility x1 1213 | -7/Factory | FarCom data flow suspended 1280 | -7/Factory | Identified exit to Storage 1280 | -7/Factory | Identified exit to Lower Caves 1322 | -7/Factory | Entered Lower Caves 1322 | -7/Lower Caves | Spotted D7-SJY(f) 1323 | -7/Lower Caves | Encountered a Master Thief 1325 | -7/Lower Caves | Spotted 8C-X80(f) 1325 | -7/Lower Caves | Longsword +1 stolen by Master Thief 1327 | -7/Lower Caves | Encountered a Master Thief 1370 | -7/Lower Caves | Encountered a Warlord checkpoint 1385 | -7/Lower Caves | Lightpack 2.0 stolen by Master Thief 1431 | -7/Lower Caves | Learned Factory stockpile data 1437 | -7/Lower Caves | Learned 4 Factory zone layouts 1457 | -7/Lower Caves | Discovered new exit (range 5) 1467 | -7/Lower Caves | Identified exit to Lower Caves 1467 | -7/Lower Caves | Entered another Lower Caves area 1506 | -7/Lower Caves | Learned 12 Factory zone layouts 1560 | -7/Lower Caves | Lost 3 parts (3n) 1590 | -7/Lower Caves | Discovered new exit (range 15) 1593 | -7/Lower Caves | Identified exit to Zion 1615 | -7/Lower Caves | Entered Zion 1660 | -7/Zion | Discovered new exit (range 12) 1663 | -7/Zion | Identified exit to Proximity Caves 1680 | -7/Zion | Build established: Hauler-Sprinter 1695 | -7/Zion | Identified Exp. Sensor Array 1698 | -7/Zion | Visited the Megawrench Repair Shop 1698 | -7/Zion | Megawrench repaired 5 parts 1729 | -7/Zion | Found GAL Module 1738 | -7/Zion | Found Prototype Special Weapon 1739 | -7/Zion | Found Prototype Special Weapon 1740 | -7/Zion | Found Prototype Special Weapon 1742 | -7/Zion | Found Prototype Special Weapon 1755 | -7/Zion | Given the Hacking Drone Bay 1755 | -7/Zion | Found Prototype Device 1784 | -7/Zion | Learned location of Recycling (-7) 1802 | -7/Zion | Learned Factory terminal intel 1982 | -7/Zion | Identified RU-N14's Throwing Claymores (x4) 2037 | -7/Zion | Self-destructed Last Messages --------------- of identity. By contrast, the Unaware run on standardized routines like simple mindless robots. How unfortunate for them. I believe we Derelicts are destined for great things, and I don't mean Warlord-style great. That one would be content ruling over Complex 0b10. We could be so much more than that... 01879_ C1-FO4(z) examines a few pieces of the Twisted Machinery. H7-421(z): I heard from one of Warlord's scouts that they use the recycling network to locate areas newly linked to 0b10. A simple Force(Tunnel) routine at a Recycling Unit is all it takes to possibly uncover something new. 01923_ System quarantine in progress... 01923_ PUBLIC SERVICE ANNOUNCEMENT: Quarantine Array scanned 1 system, cleaned 0. 01982_ Identified RU-N14's Throwing Claymores. 01989_ The unstable cave ceiling collapses. 02007_ RU-N14's Throwing Claymores expended. 02009_ Dropped Mak. Sword. 02020_ The unstable cave ceiling collapses. 02035_ RU-N14's Throwing Claymores expended. Map ----- +----------------------------------------------------+ | ?????????????????????????????????### " | | ????????????????????????????????## ## | | ????????????????????????????????#"" | | ??????????????????????????????###""" | | ??????????????????????????????#"""" " | | ??????????????????????????????##"" " | | ??????????????????????????????##" | | ??????????????????????????????#"" | | ??????????????????????????#####"" | | ??????????????????????????#""""" | | ???????????????????????????#"" | | ??????????????????????????###" | | ??????????????????????###?#"#" | | ?????????????????????"#"####"" """ " | | ??????????????????????"""#""" """""" | | ??????????????????????#"""#"" """"# | | ??????????????????????" X""""" "" | | ??????????????????????# """"" " | | ?????????????????????## """"" " | | ?????????????????????" | | ?????????????????????" " | | ???????????????####### """ " | | ???????????????# """"""" " | | ???????????????#/## """"#"" | | ????????######## ######"" | | ????????# # @# # #??#"#"" | | ????????## # # ##??###""" " | | ?????????## #######????#"#"""" " " | | ??????????## #??????????####""""" " | | ???????????### ##?????????????##"#"" " | | ?????????????###??????????????##"#" " | | ???????????????????????###????#"" " " | | ????????????????"#######"##???#" | | ????????????????#"""#"""""#####"" | | ????????????????""""""""""#""##" | | ????????"""""??#"#" """""""" | | ???????"""""""?#"#" | | ??????? ?#"" | | ????????"" ##"" """""" ## | | ????????""" """"""" """" | | ????????""" "##"#"" """" | | ????????""" ""###"" """"" | | ????????"" ###" ""##"" """"" | | ??????? ??##"" "#""" """" | | ??????????"????#""" """"" """" | | ???????????????#""" "##"""""" """"" | | ???????????????#""" ""##"#""" """"" | | ???????????????#""# """####"" """"" | | ??????????##"""#### #"#"""""" | | ??????????#" #"##""""" | +----------------------------------------------------+ Best States ------------- Heat Dissipation 34 Energy Generation 18 Energy Capacity 275 Matter Stores 300 Matter Capacity 300 Sight Range 16 Robot Scan Range 20 Terrain Scan Density 10 Additional Mass Support 9 Evasion (%) 65 Item Schematics ----------------- Hvy. Riot Gun | -7/Zion | Free Battle Rifle | -7/Zion | Free Barrage Gun | -7/Zion | Free Battle Cannon | -7/Zion | Free Bore Cannon | -7/Zion | Free Flamer | -7/Zion | Free Robot Schematics ------------------ None Fabricated ------------ Nothing Alien Tech Used ----------------- None Achievements -------------- None Challenges ------------ None Game ------ Seed HeatHugeWeb Manual? 0 Play Time 00:27:51 Cumulative 188.0 hours Start 2023.05.10 @ 15:56:02 End 2023.05.10 @ 16:28:34 Sessions 1 Manual Loads 0 Difficulty Rogue Special Mode None Game No. 538 Rogue 538 Adventurer 0 Explorer 0 Win Type - Total 9 Types 7/0/1/1/0/0/0/0/0 Lore% 77 Gallery% 76 Achievement% 68 Wizard Run 0 Options --------- ASCII 0 Keyboard 0 Movement Mouse Keybinds 0 Fullscreen 1 Font 16/SmallcapsGlow Map View 75x55 Tactical HUD 1 Map Filters NONE Filters NONE Steam 1 RUN: d421ce6c-3cb2-4928-8b9a-00c67fe40b49